[Event "Schack-SM 2023: Mastarklassen"]
[Site "Helsingborg Arena, Mellersta Stenbocksgatan 14, Helsingborg, Sweden"]
[Date "2023.07.04"]
[Round "4.3"]
[White "Frisk, Ellinor"]
[Black "Franzen, Per-Erik"]
[Result "1-0"]
[TimeControl "90 minutes for 40 moves + 30 minutes for the rest of games + 30 seconds per move from move one."]
[WhiteTitle "WIM"]
[WhiteElo "2178"]
[BlackElo "2025"]

1. Nf3 {[%clk 01:30:57]} {[%emt 00:00:03]} Nf6 {[%clk 01:30:52]} {[%emt
00:00:08]} 2. c4 {[%clk 01:31:23]} {[%emt 00:00:05]} e6 {[%clk 01:31:11]}
{[%emt 00:00:10]} 3. g3 {[%clk 01:31:26]} {[%emt 00:00:28]} d5 {[%clk
01:31:27]} {[%emt 00:00:13]} 4. Bg2 {[%clk 01:31:49]} {[%emt 00:00:08]} dxc4
{[%clk 01:31:21]} {[%emt 00:00:36]} 5. Qa4+ {[%clk 01:31:36]} {[%emt 00:00:43]}
Qd7 {[%clk 01:31:41]} {[%emt 00:00:09]} 6. Qxc4 {[%clk 01:31:25]} {[%emt
00:00:41]} Qc6 {[%clk 01:31:57]} {[%emt 00:00:14]} 7. b3 {[%clk 01:29:35]}
{[%emt 00:02:20]} Qxc4 {[%clk 01:32:19]} {[%emt 00:00:08]} 8. bxc4 {[%clk
01:30:01]} {[%emt 00:00:04]} Nc6 {[%clk 01:32:22]} {[%emt 00:00:27]} 9. O-O
{[%clk 01:28:59]} {[%emt 00:01:32]} Bb4 {[%clk 01:30:32]} {[%emt 00:02:20]} 10.
Bb2 {[%clk 01:27:37]} {[%emt 00:01:53]} O-O {[%clk 01:24:03]} {[%emt 00:06:59]}
11. d3 {[%clk 01:20:02]} {[%emt 00:08:04]} Rb8 {[%clk 01:14:37]} {[%emt
00:09:56]} 12. Nbd2 {[%clk 01:09:00]} {[%emt 00:11:32]} Bd7 {[%clk 01:01:22]}
{[%emt 00:13:47]} 13. Nb3 {[%clk 01:08:54]} {[%emt 00:00:35]} a5 {[%clk
00:54:59]} {[%emt 00:06:52]} 14. Rab1 {[%clk 00:58:15]} {[%emt 00:11:09]} Rfd8
{[%clk 00:43:47]} {[%emt 00:11:41]} 15. Ne5 {[%clk 00:49:42]} {[%emt 00:09:03]}
a4 {[%clk 00:33:02]} {[%emt 00:11:15]} 16. Nxc6 {[%clk 00:36:28]} {[%emt
00:13:45]} bxc6 {[%clk 00:27:50]} {[%emt 00:05:42]} 17. Nd4 {[%clk 00:31:52]}
{[%emt 00:05:06]} c5 {[%clk 00:24:49]} {[%emt 00:03:31]} 18. Nc6 {[%clk
00:31:26]} {[%emt 00:00:56]} Bxc6 {[%clk 00:24:36]} {[%emt 00:00:43]} 19. Bxc6
{[%clk 00:31:54]} {[%emt 00:00:02]} a3 {[%clk 00:24:05]} {[%emt 00:01:01]} 20.
Be5 {[%clk 00:32:04]} {[%emt 00:00:20]} Rdc8 {[%clk 00:22:27]} {[%emt
00:02:08]} 21. Rb3 {[%clk 00:31:43]} {[%emt 00:00:51]} Rb6 {[%clk 00:21:33]}
{[%emt 00:01:24]} 22. Bf3 {[%clk 00:31:11]} {[%emt 00:01:02]} Nd7 {[%clk
00:17:13]} {[%emt 00:04:50]} 23. Ba1 {[%clk 00:31:33]} {[%emt 00:00:08]} Rcb8
{[%clk 00:14:46]} {[%emt 00:02:56]} 24. Rd1 {[%clk 00:27:52]} {[%emt 00:04:12]}
f6 {[%clk 00:11:36]} {[%emt 00:03:40]} 25. Kg2 {[%clk 00:20:25]} {[%emt
00:07:57]} Kf7 {[%clk 00:09:03]} {[%emt 00:03:03]} 26. h4 {[%clk 00:20:24]}
{[%emt 00:00:31]} Rd6 {[%clk 00:07:59]} {[%emt 00:01:34]} 27. Rdb1 {[%clk
00:14:46]} {[%emt 00:06:09]} Rdb6 {[%clk 00:05:48]} {[%emt 00:02:40]} 28. e3
{[%clk 00:13:10]} {[%emt 00:02:07]} Ne5 {[%clk 00:03:52]} {[%emt 00:02:25]} 29.
Be4 {[%clk 00:11:34]} {[%emt 00:02:06]} g6 {[%clk 00:03:54]} {[%emt 00:00:28]}
30. Kf1 {[%clk 00:11:27]} {[%emt 00:00:37]} Bd2 {[%clk 00:02:43]} {[%emt
00:01:41]} 31. Rb5 {[%clk 00:07:40]} {[%emt 00:04:17]} Bb4 {[%clk 00:02:05]}
{[%emt 00:01:08]} 32. Rxb6 {[%clk 00:07:23]} {[%emt 00:00:47]} Rxb6 {[%clk
00:02:20]} {[%emt 00:00:16]} 33. Ke2 {[%clk 00:06:49]} {[%emt 00:01:03]} Nd7
{[%clk 00:01:52]} {[%emt 00:00:58]} 34. Rb3 {[%clk 00:06:47]} {[%emt 00:00:32]}
Ne5 {[%clk 00:01:56]} {[%emt 00:00:25]} 35. f4 {[%clk 00:05:54]} {[%emt
00:01:24]} Nd7 {[%clk 00:02:13]} {[%emt 00:00:13]} 36. g4 {[%clk 00:05:53]} e5
{[%clk 00:01:48]} {[%emt 00:01:25]} 37. Bd5+ {[%clk 00:04:38]} Kg7 {[%clk
00:01:48]} {[%emt 00:02:16]} 38. fxe5 Nxe5 39. g5 {[%clk 00:04:15]} {[%emt
00:00:12]} c6 {[%clk 00:01:23]} {[%emt 00:00:53]} 40. Be4 {[%clk 00:02:53]}
{[%emt 00:01:52]} Kf7 {[%clk 00:01:10]} {[%emt 00:00:44]} 41. Rb1 {[%clk
00:30:20]} {[%emt 00:03:02]} Ng4 {[%clk 00:27:24]} {[%emt 00:04:15]} 42. gxf6
{[%clk 00:24:32]} {[%emt 00:06:19]} Nxe3 {[%clk 00:21:27]} {[%emt 00:06:27]} 43.
Kxe3 {[%clk 00:13:58]} {[%emt 00:11:04]} Bd2+ {[%clk 00:21:45]} {[%emt
00:00:11]} 44. Kxd2 {[%clk 00:14:26]} {[%emt 00:00:03]} Rxb1 {[%clk 00:22:08]}
{[%emt 00:00:07]} 45. Bc3 {[%clk 00:14:50]} {[%emt 00:00:05]} Rf1 {[%clk
00:18:37]} {[%emt 00:04:01]} 46. Bxc6 {[%clk 00:13:24]} {[%emt 00:01:57]} Rf2+
{[%clk 00:16:53]} {[%emt 00:02:14]} 47. Ke3 {[%clk 00:13:48]} {[%emt 00:00:06]}
1-0

[Event "Schack-SM 2023: Junior-SM"]
[Site "Helsingborg Arena, Mellersta Stenbocksgatan 14, Helsingborg, Sweden"]
[Date "2023.07.03"]
[Round "3.2"]
[White "Persson, Sebastian 2007"]
[Black "Carlsson, Ludvig"]
[Result "1-0"]
[TimeControl "90 minutes for 40 moves + 30 minutes for the rest of the game + 30 seconds per move from move one."]
[BlackTitle "IM"]
[WhiteElo "1947"]
[BlackElo "2373"]

1. d4 {[%clk 01:30:56]} {[%emt 00:00:03]} Nf6 {[%clk 01:30:21]} {[%emt
00:00:38]} 2. Nf3 {[%clk 01:31:12]} {[%emt 00:00:14]} e6 {[%clk 01:30:32]}
{[%emt 00:00:19]} 3. c4 {[%clk 01:31:33]} {[%emt 00:00:09]} c5 {[%clk
01:29:58]} {[%emt 00:01:04]} 4. e3 {[%clk 01:31:04]} {[%emt 00:00:59]} cxd4
{[%clk 01:28:13]} {[%emt 00:02:15]} 5. exd4 {[%clk 01:30:53]} {[%emt 00:00:41]}
d5 {[%clk 01:28:34]} {[%emt 00:00:09]} 6. Nc3 {[%clk 01:30:22]} {[%emt
00:01:01]} Be7 {[%clk 01:28:35]} {[%emt 00:00:28]} 7. cxd5 {[%clk 01:29:20]}
{[%emt 00:01:32]} Nxd5 {[%clk 01:25:59]} {[%emt 00:03:07]} 8. Bc4 {[%clk
01:23:15]} {[%emt 00:06:35]} Nxc3 {[%clk 01:20:50]} {[%emt 00:05:39]} 9. bxc3
{[%clk 01:23:32]} {[%emt 00:00:12]} O-O {[%clk 01:19:51]} {[%emt 00:01:29]} 10.
O-O {[%clk 01:18:50]} {[%emt 00:05:11]} b6 {[%clk 01:15:08]} {[%emt 00:05:14]}
11. Bf4 {[%clk 01:11:16]} {[%emt 00:08:03]} Bb7 {[%clk 01:15:03]} {[%emt
00:00:36]} 12. Rc1 {[%clk 01:08:54]} {[%emt 00:02:51]} Nd7 {[%clk 01:12:58]}
{[%emt 00:02:35]} 13. Bd3 {[%clk 01:01:21]} {[%emt 00:08:03]} Nf6 {[%clk
01:11:13]} {[%emt 00:02:16]} 14. Re1 {[%clk 00:58:00]} {[%emt 00:03:50]} Rc8
{[%clk 01:11:08]} {[%emt 00:00:34]} 15. Qe2 {[%clk 00:55:18]} {[%emt 00:03:12]}
Qd5 {[%clk 01:04:02]} {[%emt 00:07:36]} 16. Be5 {[%clk 00:42:33]} {[%emt
00:13:15]} Rfd8 {[%clk 01:00:59]} {[%emt 00:03:33]} 17. h3 {[%clk 00:40:24]}
{[%emt 00:02:39]} Nd7 {[%clk 00:59:01]} {[%emt 00:02:29]} 18. Qc2 {[%clk
00:35:43]} {[%emt 00:05:12]} Nf8 {[%clk 00:58:55]} {[%emt 00:00:35]} 19. h4
{[%clk 00:27:02]} {[%emt 00:09:11]} Qa5 {[%clk 00:57:45]} {[%emt 00:01:41]} 20.
Ng5 {[%clk 00:25:35]} {[%emt 00:01:58]} g6 {[%clk 00:57:27]} {[%emt 00:00:48]}
21. Re3 {[%clk 00:23:42]} {[%emt 00:02:23]} Ba3 {[%clk 00:56:30]} {[%emt
00:01:26]} 22. h5 {[%clk 00:11:28]} {[%emt 00:12:44]} Bxc1 {[%clk 00:56:14]}
{[%emt 00:00:47]} 23. hxg6 {[%clk 00:11:49]} {[%emt 00:00:09]} fxg6 {[%clk
00:50:21]} {[%emt 00:06:23]} 24. Nxh7 {[%clk 00:09:47]} {[%emt 00:02:31]} Bxe3
{[%clk 00:48:47]} {[%emt 00:02:03]} 25. Bxg6 {[%clk 00:09:48]} {[%emt
00:00:29]} Rxc3 {[%clk 00:47:52]} {[%emt 00:01:26]} 26. Nf6+ {[%clk 00:09:47]}
{[%emt 00:00:30]} Kh8 {[%clk 00:48:16]} {[%emt 00:00:05]} 27. Nd5+ {[%clk
00:05:41]} {[%emt 00:04:36]} Kg8 {[%clk 00:48:36]} {[%emt 00:00:10]} 28. Ne7#
{[%emt 00:00:06]} 1-0

[Event "Schack-SM 2023: Veteran-SM 65+"]
[Site "Helsingborg Arena, Mellersta Stenbocksgatan 14, Helsingborg, Sweden"]
[Date "2023.07.03"]
[Round "3.2"]
[White "Green, Per"]
[Black "Malmdin, Nils-Ake"]
[Result "0-1"]
[TimeControl "90 minutes for 40 moves + 30 minutes for the rest of games + 30 seconds per move from move one."]
[BlackTitle "FM"]
[WhiteElo "1898"]
[BlackElo "2091"]

1. c4 {[%clk 01:30:19]} {[%emt 00:00:41]} g6 {[%clk 01:29:47]} {[%emt
00:01:12]} 2. g3 {[%clk 01:30:40]} {[%emt 00:00:10]} Bg7 {[%clk 01:29:54]}
{[%emt 00:00:22]} 3. Bg2 {[%clk 01:30:58]} {[%emt 00:00:13]} c5 {[%clk
01:30:01]} {[%emt 00:00:21]} 4. Nc3 {[%clk 01:31:05]} {[%emt 00:00:24]} Nc6
{[%clk 01:30:19]} {[%emt 00:00:12]} 5. Nf3 {[%clk 01:31:00]} {[%emt 00:00:35]}
d6 {[%clk 01:30:33]} {[%emt 00:00:15]} 6. O-O {[%clk 01:30:42]} {[%emt
00:00:50]} Bf5 {[%clk 01:30:49]} {[%emt 00:00:13]} 7. h3 {[%clk 01:30:45]}
{[%emt 00:00:27]} Qc8 {[%clk 01:20:29]} {[%emt 00:10:50]} 8. Kh2 {[%clk
01:30:27]} {[%emt 00:00:48]} h6 {[%clk 01:20:25]} {[%emt 00:00:33]} 9. d3
{[%clk 01:29:40]} {[%emt 00:01:19]} g5 {[%clk 01:18:56]} {[%emt 00:01:58]} 10.
a3 {[%clk 01:16:26]} {[%emt 00:13:45]} g4 {[%clk 01:09:05]} {[%emt 00:10:20]}
11. hxg4 {[%clk 01:12:57]} {[%emt 00:04:00]} Bxg4 {[%clk 01:09:23]} {[%emt
00:00:11]} 12. Bd2 {[%clk 01:10:53]} {[%emt 00:02:35]} h5 {[%clk 01:06:02]}
{[%emt 00:03:50]} 13. Bg5 {[%clk 01:09:17]} {[%emt 00:02:06]} Nh6 {[%clk
00:59:28]} {[%emt 00:07:04]} 14. Rb1 {[%clk 01:07:46]} {[%emt 00:02:01]} Nf5
{[%clk 00:56:01]} {[%emt 00:03:56]} 15. Nh4 {[%clk 01:05:19]} {[%emt 00:02:58]}
Nfd4 {[%clk 00:55:20]} {[%emt 00:01:11]} 16. f3 {[%clk 01:03:59]} {[%emt
00:01:50]} Bd7 {[%clk 00:55:37]} {[%emt 00:00:13]} 17. Ne4 {[%clk 00:58:26]}
{[%emt 00:06:03]} a5 {[%clk 00:48:45]} {[%emt 00:07:22]} 18. Nc3 {[%clk
00:53:11]} {[%emt 00:05:45]} Ne6 {[%clk 00:44:16]} {[%emt 00:04:58]} 19. Bd2
{[%clk 00:50:58]} {[%emt 00:02:44]} Nc7 {[%clk 00:38:12]} {[%emt 00:06:33]} 20.
Ne4 {[%clk 00:43:22]} {[%emt 00:08:07]} Rg8 {[%clk 00:37:21]} {[%emt 00:01:20]}
21. Bc3 {[%clk 00:42:44]} {[%emt 00:01:09]} Ne5 {[%clk 00:30:10]} {[%emt
00:07:42]} 22. Qd2 {[%clk 00:39:38]} {[%emt 00:03:36]} f5 {[%clk 00:29:34]}
{[%emt 00:01:06]} 23. Nf2 {[%clk 00:33:12]} {[%emt 00:06:56]} Bf6 {[%clk
00:28:15]} {[%emt 00:01:49]} 24. Qh6 {[%clk 00:30:52]} {[%emt 00:02:49]} Rh8
{[%clk 00:24:24]} {[%emt 00:04:20]} 25. Qd2 {[%clk 00:26:26]} {[%emt 00:04:57]}
Rg8 {[%clk 00:23:47]} {[%emt 00:01:07]} 26. Nh3 {[%clk 00:24:37]} {[%emt
00:02:19]} Be6 {[%clk 00:19:46]} {[%emt 00:04:31]} 27. Bxa5 {[%clk 00:23:38]}
{[%emt 00:01:29]} Kd7 {[%clk 00:16:59]} {[%emt 00:03:17]} 28. Nf4 {[%clk
00:23:03]} {[%emt 00:01:06]} Rg5 {[%clk 00:16:15]} {[%emt 00:01:13]} 29. Bxc7
{[%clk 00:19:48]} {[%emt 00:03:45]} Kxc7 {[%clk 00:16:04]} {[%emt 00:00:40]} 30.
Bh3 {[%clk 00:18:23]} {[%emt 00:01:56]} Bf7 {[%clk 00:14:17]} {[%emt 00:02:18]}
31. e4 {[%clk 00:17:40]} {[%emt 00:01:12]} e6 {[%clk 00:13:01]} {[%emt
00:01:46]} 32. exf5 {[%clk 00:15:19]} {[%emt 00:02:51]} exf5 {[%clk 00:13:17]}
{[%emt 00:00:14]} 33. Nd5+ {[%clk 00:14:27]} {[%emt 00:01:22]} Bxd5 {[%clk
00:13:33]} {[%emt 00:00:14]} 34. cxd5 {[%clk 00:14:53]} {[%emt 00:00:04]} Qg8
{[%clk 00:11:18]} {[%emt 00:02:44]} 35. Nxf5 {[%clk 00:10:49]} {[%emt
00:04:34]} Qxd5 {[%clk 00:10:55]} {[%emt 00:00:53]} 36. Nh4 {[%clk 00:09:35]}
{[%emt 00:01:45]} Rag8 {[%clk 00:10:15]} {[%emt 00:01:11]} 37. f4 {[%clk
00:05:41]} {[%emt 00:04:23]} Rxg3 {[%clk 00:06:19]} {[%emt 00:04:26]} 38. Ng2
{[%clk 00:03:01]} {[%emt 00:03:10]} Nf3+ {[%clk 00:04:53]} {[%emt 00:01:55]} 39.
Rxf3 {[%clk 00:02:27]} {[%emt 00:01:06]} Qxf3 {[%clk 00:05:13]} 0-1

[Event "Schack-SM 2023: Veteran-SM 50+"]
[Site "Helsingborg Arena, Mellersta Stenbocksgatan 14, Helsingborg, Sweden"]
[Date "2023.07.03"]
[Round "3.2"]
[White "Petersson, Kjell"]
[Black "Moborn, Anders"]
[Result "1/2-1/2"]
[TimeControl "90 minutes for 40 moves + 30 minutes for the rest of games + 30 seconds per move from move one."]
[WhiteTitle "CM"]
[WhiteElo "2061"]
[BlackElo "1956"]

1. d4 {[%clk 01:30:59]} {[%emt 19:25:26]} d5 {[%clk 01:30:45]} {[%emt
00:00:15]} 2. Bf4 {[%clk 01:31:27]} {[%emt 00:00:02]} Nf6 {[%clk 01:30:52]}
{[%emt 00:00:23]} 3. e3 {[%clk 01:31:41]} {[%emt 00:00:16]} c5 {[%clk
01:30:55]} {[%emt 00:00:28]} 4. c3 {[%clk 01:31:56]} {[%emt 00:00:14]} Nc6
{[%clk 01:31:09]} {[%emt 00:00:16]} 5. Nd2 {[%clk 01:32:21]} {[%emt 00:00:05]}
Qb6 {[%clk 01:31:04]} {[%emt 00:00:36]} 6. Qb3 {[%clk 01:32:10]} {[%emt
00:00:41]} c4 {[%clk 01:30:06]} {[%emt 00:01:27]} 7. Qc2 {[%clk 01:32:35]}
{[%emt 00:00:05]} g6 {[%clk 01:29:53]} {[%emt 00:00:43]} 8. e4 {[%clk
01:32:06]} {[%emt 00:01:00]} Nxe4 {[%clk 01:28:40]} {[%emt 00:01:43]} 9. Nxe4
{[%clk 01:30:52]} {[%emt 00:01:43]} dxe4 {[%clk 01:28:59]} {[%emt 00:00:11]} 10.
Bxc4 {[%clk 01:31:09]} {[%emt 00:00:13]} Bg7 {[%clk 01:29:08]} {[%emt
00:00:21]} 11. Qb3 {[%clk 01:15:36]} {[%emt 00:16:03]} Qxb3 {[%clk 01:23:41]}
{[%emt 00:05:57]} 12. axb3 {[%clk 01:13:47]} {[%emt 00:02:19]} e5 {[%clk
01:22:48]} {[%emt 00:01:22]} 13. dxe5 {[%clk 01:13:31]} {[%emt 00:00:47]} Nxe5
{[%clk 01:22:38]} {[%emt 00:00:40]} 14. Bxe5 {[%clk 01:04:31]} {[%emt
00:09:30]} Bxe5 {[%clk 01:22:36]} {[%emt 00:00:32]} 15. Ne2 {[%clk 01:04:25]}
{[%emt 00:00:36]} Ke7 {[%clk 01:07:38]} {[%emt 00:15:28]} 1/2-1/2

[Event "Schack-SM 2023: Sverigemastarklassen"]
[Site "Helsingborg Arena, Mellersta Stenbocksgatan 14, Helsingborg, Sweden"]
[Date "2023.07.03"]
[Round "3.1"]
[White "Sivuk, Vitaly"]
[Black "Hector, Jonny"]
[Result "1-0"]
[TimeControl "90 minutes for 40 moves + 30 minutes for the rest of the game + 30 seconds per move from move one."]
[WhiteTitle "GM"]
[BlackTitle "GM"]
[WhiteElo "2432"]
[BlackElo "2481"]

1. e4 {[%clk 01:24:55]} {[%emt 00:06:04]} e5 {[%clk 01:30:51]} {[%emt
00:00:09]} 2. Nf3 {[%clk 01:25:19]} {[%emt 00:00:07]} Nc6 {[%clk 01:31:13]}
{[%emt 00:00:08]} 3. Bb5 {[%clk 01:25:42]} {[%emt 00:00:07]} a6 {[%clk
01:29:44]} {[%emt 00:01:59]} 4. Ba4 {[%clk 01:26:07]} {[%emt 00:00:06]} Bc5
{[%clk 01:28:38]} {[%emt 00:01:36]} 5. O-O {[%clk 01:25:30]} {[%emt 00:01:07]}
Nge7 {[%clk 01:28:17]} {[%emt 00:00:49]} 6. c3 {[%clk 01:25:48]} {[%emt
00:00:14]} Ba7 {[%clk 01:28:05]} {[%emt 00:00:42]} 7. d4 {[%clk 01:26:06]}
{[%emt 00:00:11]} Ng6 {[%clk 01:27:15]} {[%emt 00:01:20]} 8. Bg5 {[%clk
01:26:16]} {[%emt 00:00:20]} f6 {[%clk 01:26:20]} {[%emt 00:01:24]} 9. Be3
{[%clk 01:26:41]} {[%emt 00:00:05]} O-O {[%clk 01:25:33]} {[%emt 00:01:16]} 10.
Nbd2 {[%clk 01:26:55]} {[%emt 00:00:17]} d6 {[%clk 01:22:11]} {[%emt 00:03:51]}
11. Re1 {[%clk 01:27:07]} {[%emt 00:00:19]} f5 {[%clk 01:14:46]} {[%emt
00:07:55]} 12. exf5 {[%clk 01:24:48]} {[%emt 00:02:49]} Bxf5 {[%clk 01:12:51]}
{[%emt 00:02:24]} 13. Bxc6 {[%clk 01:14:28]} {[%emt 00:10:51]} bxc6 {[%clk
01:11:27]} {[%emt 00:01:54]} 14. dxe5 {[%clk 01:14:55]} {[%emt 00:00:04]} c5
{[%clk 01:01:29]} {[%emt 00:10:27]} 15. exd6 {[%clk 01:05:12]} {[%emt
00:10:13]} cxd6 16. c4 {[%clk 01:05:12]} Qf6 {[%clk 00:48:19]} 17. Bg5 {[%clk
01:05:12]} Qxb2 {[%clk 00:48:19]} 18. Ne4 {[%clk 01:05:12]} Bxe4 {[%clk
00:48:19]} 19. Rxe4 {[%clk 01:05:12]} Qb7 {[%clk 00:48:19]} 20. Re6 {[%clk
01:05:12]} Bb8 {[%clk 00:48:19]} 21. h4 {[%clk 01:05:12]} Ra7 {[%clk 00:48:19]}
22. Rb1 {[%clk 01:05:12]} Qf7 {[%clk 00:48:19]} 23. Qd5 {[%clk 01:05:12]} Kh8
{[%clk 00:48:19]} 24. Re2 {[%clk 01:05:12]} h6 {[%clk 00:48:19]} 25. h5 {[%clk
01:05:12]} Nf4 {[%clk 00:48:19]} 26. Bxf4 {[%clk 01:05:12]} Qxf4 {[%clk
00:48:19]} 27. g3 {[%clk 01:05:12]} Qf6 {[%clk 00:48:19]} 28. Nh4 {[%clk
01:05:12]} Kh7 {[%clk 00:48:19]} 29. Qe4+ {[%clk 01:05:12]} Kg8 {[%clk
00:48:19]} 30. Ng6 {[%clk 01:05:12]} Rd8 {[%clk 00:48:19]} 31. Qe8+ {[%clk
01:05:12]} Rxe8 {[%clk 00:48:19]} 32. Rxe8+ {[%clk 01:05:12]} Kf7 {[%clk
00:48:19]} 33. Rf8+ {[%clk 01:05:12]} 1-0

[Event "Schack-SM 2023: Junior-SM"]
[Site "Helsingborg Arena, Mellersta Stenbocksgatan 14, Helsingborg, Sweden"]
[Date "2023.07.03"]
[Round "3.3"]
[White "Ostlund, Joar"]
[Black "Dingertz, Erik"]
[Result "1/2-1/2"]
[TimeControl "90 minutes for 40 moves + 30 minutes for the rest of the game + 30 seconds per move from move one."]
[WhiteTitle "CM"]
[WhiteElo "2265"]
[BlackElo "2090"]

1. d4 {[%clk 01:30:57]} {[%emt 00:00:03]} Nf6 {[%clk 01:30:55]} {[%emt
00:00:06]} 2. c4 {[%clk 01:31:13]} {[%emt 00:00:13]} e6 {[%clk 01:31:21]}
{[%emt 00:00:03]} 3. g3 {[%clk 01:31:38]} {[%emt 00:00:06]} d5 {[%clk
01:31:42]} {[%emt 00:00:09]} 4. Bg2 {[%clk 01:32:00]} {[%emt 00:00:07]} Be7
{[%clk 01:32:04]} {[%emt 00:00:08]} 5. Nf3 {[%clk 01:32:22]} {[%emt 00:00:08]}
O-O {[%clk 01:32:29]} {[%emt 00:00:05]} 6. O-O {[%clk 01:32:44]} {[%emt
00:00:08]} dxc4 {[%clk 01:32:55]} {[%emt 00:00:04]} 7. Qc2 {[%clk 01:32:55]}
{[%emt 00:00:18]} a6 {[%clk 01:33:19]} {[%emt 00:00:06]} 8. a4 {[%clk
01:33:10]} {[%emt 00:00:16]} Bd7 {[%clk 01:33:39]} {[%emt 00:00:10]} 9. Qxc4
{[%clk 01:33:09]} {[%emt 00:00:30]} Bc6 {[%clk 01:33:58]} {[%emt 00:00:11]} 10.
Bg5 {[%clk 01:33:03]} {[%emt 00:00:35]} Bd5 {[%clk 01:34:09]} {[%emt 00:00:20]}
11. Qc2 {[%clk 01:30:06]} {[%emt 00:03:27]} Be4 {[%clk 01:34:31]} {[%emt
00:00:09]} 12. Qc1 {[%clk 01:27:21]} {[%emt 00:03:16]} Nc6 {[%clk 01:27:52]}
{[%emt 00:07:09]} 13. Nbd2 {[%clk 01:08:10]} {[%emt 00:19:40]} Bg6 {[%clk
01:15:04]} {[%emt 00:13:18]} 14. e3 {[%clk 00:58:59]} {[%emt 00:09:41]} h6
{[%clk 01:02:38]} {[%emt 00:12:57]} 15. Bxf6 {[%clk 00:59:00]} {[%emt
00:00:29]} Bxf6 {[%clk 01:02:35]} {[%emt 00:00:33]} 16. Nb3 {[%clk 00:53:32]}
{[%emt 00:05:57]} e5 {[%clk 00:56:08]} {[%emt 00:06:58]} 17. dxe5 {[%clk
00:47:40]} {[%emt 00:06:22]} Nxe5 {[%clk 00:56:30]} {[%emt 00:00:08]} 18. Nxe5
{[%clk 00:48:01]} {[%emt 00:00:09]} Bxe5 {[%clk 00:56:53]} {[%emt 00:00:07]} 19.
Nc5 {[%clk 00:43:56]} {[%emt 00:04:35]} c6 {[%clk 00:43:07]} {[%emt 00:14:15]}
20. Rd1 {[%clk 00:25:25]} {[%emt 00:19:01]} Qa5 {[%clk 00:43:13]} {[%emt
00:00:24]} 21. Nd7 {[%clk 00:25:09]} {[%emt 00:00:44]} Rfe8 {[%clk 00:43:16]}
{[%emt 00:00:29]} 22. Qd2 {[%clk 00:25:06]} {[%emt 00:00:33]} Qxd2 {[%clk
00:37:18]} {[%emt 00:06:28]} 23. Rxd2 {[%clk 00:25:32]} {[%emt 00:00:04]} Rad8
{[%clk 00:35:20]} {[%emt 00:02:28]} 24. Rad1 {[%clk 00:24:34]} {[%emt
00:01:28]} Bh5 {[%clk 00:35:45]} {[%emt 00:00:05]} 25. f3 {[%clk 00:22:46]} b5
{[%clk 00:35:48]} {[%emt 00:02:46]} 26. g4 {[%clk 00:21:19]} {[%emt 00:01:56]}
Bg6 {[%clk 00:35:09]} {[%emt 00:01:09]} 27. f4 {[%clk 00:21:33]} {[%emt
00:00:16]} Bc7 {[%clk 00:34:40]} {[%emt 00:00:59]} 28. f5 {[%clk 00:21:28]}
{[%emt 00:00:35]} Bh7 {[%clk 00:35:01]} {[%emt 00:00:09]} 29. Bxc6 {[%clk
00:19:40]} {[%emt 00:02:18]} Rxe3 {[%clk 00:33:52]} {[%emt 00:01:39]} 30. axb5
{[%clk 00:12:53]} {[%emt 00:07:17]} axb5 {[%clk 00:34:14]} {[%emt 00:00:08]} 31.
Bxb5 {[%clk 00:11:55]} {[%emt 00:01:27]} h5 {[%clk 00:33:56]} {[%emt 00:00:49]}
32. Nf6+ {[%clk 00:05:59]} {[%emt 00:06:26]} gxf6 {[%clk 00:34:10]} {[%emt
00:00:15]} 33. Rxd8+ {[%clk 00:06:26]} {[%emt 00:00:03]} Bxd8 {[%clk 00:34:36]}
{[%emt 00:00:05]} 34. Rxd8+ {[%clk 00:06:50]} {[%emt 00:00:05]} Kg7 {[%clk
00:35:03]} {[%emt 00:00:03]} 35. Bd3 {[%clk 00:06:18]} {[%emt 00:01:01]} hxg4
{[%clk 00:34:11]} {[%emt 00:01:22]} 36. Rd5 {[%clk 00:04:41]} {[%emt 00:02:07]}
Re1+ {[%clk 00:33:15]} {[%emt 00:01:25]} 37. Kf2 {[%clk 00:03:40]} {[%emt
00:01:31]} Rd1 {[%clk 00:33:24]} {[%emt 00:00:21]} 38. Ke3 {[%clk 00:03:31]}
{[%emt 00:00:40]} Rh1 {[%clk 00:33:26]} {[%emt 00:00:28]} 39. Rd4 {[%clk
00:03:35]} {[%emt 00:00:26]} Rxh2 {[%clk 00:33:09]} {[%emt 00:00:48]} 40. Rxg4+
{[%clk 00:03:54]} {[%emt 00:00:10]} Kf8 {[%clk 00:33:29]} {[%emt 00:00:10]} 41.
b4 {[%clk 00:03:51]} {[%emt 00:00:34]} Rh3+ {[%clk 00:33:50]} {[%emt 00:00:08]}
42. Ke4 {[%clk 00:25:24]} {[%emt 00:08:57]} Rxd3 {[%clk 01:03:21]} {[%emt
00:01:00]} 43. Kxd3 {[%clk 00:25:12]} {[%emt 00:00:42]} Bxf5+ {[%clk 01:03:45]}
{[%emt 00:00:05]} 44. Re4 {[%clk 00:25:35]} {[%emt 00:00:07]} Bxe4+ {[%clk
01:04:11]} {[%emt 00:00:04]} 1/2-1/2